bitfinex-derivatives/quotes_ETHF0:USTF0_20250101
["timestamp","ask_amount","ask_price","bid_price","bid_amount"]
[1735730377428,0.3005,3334.2,3334.1,4.72866005]
[1735730377627,0.3005,3334.2,3334.1,5.02917005]
[1735730378529,0.3005,3334.2,3334.1,0.30051]
[1735730379126,0.4527,3334.4,3334.0,3.2078]
[1735730379326,0.3005,3334.3,3334.2,0.30049]
[1735730380832,0.30051,3334.2,3334.1,0.30051]
[1735730381027,0.30051,3334.2,3334.1,0.63588474]
[1735730381229,0.30051,3334.2,3334.1,0.33537474]
[1735730381532,0.4527,3334.4,3334.1,0.33545369]
[1735730381730,0.30051,3334.1,3334.0,3.2078]
[1735730381939,0.30051,3334.1,3334.0,3.84377692]
[1735730382433,0.30051,3334.1,3334.0,3.54325692]
[1735730382636,0.30051,3334.1,3334.0,3.54315574]
[1735730385742,0.30051,3334.1,3334.0,3.84344262]
[1735730386838,0.30051,3334.1,3334.0,3.84339948]
[1735730388846,0.30051,3334.1,3334.0,3.84333438]
[1735730389140,0.30051,3334.1,3334.0,3.50832]
[1735730391045,0.4527,3334.4,3334.0,3.2078]
[1735730391340,0.3005,3334.3,3334.2,0.30049]
[1735730393143,0.30051,3334.2,3334.1,0.30051]
[1735730393739,0.30051,3334.1,3334.0,3.2078]
[1735730399638,0.30051,3334.1,3334.0,3.50832]
[1735730399837,0.30051,3334.1,3334.0,3.2078]
[1735730400247,0.30051,3334.1,3334.0,3.5429585]
[1735730400851,0.30051,3334.1,3334.0,3.8434785]
[1735730401352,0.30051,3334.1,3334.0,3.50832]
[1735730401649,1.20393,3334.4,3334.0,3.2078]
[1735730401650,0.4527,3334.4,3334.0,3.2078]
[1735730401855,0.4527,3334.4,3334.3,0.30049]
[1735730402047,0.75318,3334.4,3334.3,0.30049]
[1735730402349,0.4527,3334.4,3334.3,1.09969955]
[1735730402745,0.75318,3334.4,3334.3,0.76449]
[1735730402948,0.75318,3334.4,3334.3,0.464]
[1735730403348,0.75318,3334.4,3334.3,0.79930726]
[1735730403544,0.75318,3334.4,3334.3,0.33530726]
[1735730404154,0.75318,3334.4,3334.3,0.63579726]
[1735730404647,0.4527,3334.4,3334.3,0.63579726]
[1735730405250,0.4527,3334.4,3334.3,1.17268576]
[1735730405453,0.75318,3334.4,3334.3,0.63579726]
[1735730406357,0.75318,3334.4,3334.3,0.8723965]
[1735730406652,0.75318,3334.4,3334.3,0.33530726]
[1735730406854,0.75318,3334.4,3334.3,0.33566268]
[1735730407354,0.75318,3334.4,3334.3,1.1732736]
[1735730407554,0.75318,3334.4,3334.3,0.8727836]
[1735730408246,0.75318,3334.4,3334.3,0.33566268]
[1735730408554,0.75318,3334.4,3334.3,0.33568989]
[1735730409454,0.75318,3334.4,3334.0,3.2078]
[1735730409455,0.30051,3334.1,3334.0,3.2078]
[1735730409753,0.30051,3334.1,3334.0,3.54349265]
[1735730410255,0.30051,3334.1,3334.0,0.33569265]
[1735730411160,0.30051,3334.1,3334.0,0.33196842]
[1735730411353,7.09550345,3334.4,3333.8,1.174]
[1735730411555,0.30053,3333.9,3333.8,1.174]
[1735730412159,0.30057,3333.5,3333.4,4.72866005]
[1735730412458,0.30057,3333.5,3333.4,5.05474353]
[1735730412651,0.30057,3333.5,3333.4,4.72866005]
[1735730413350,0.75135,3333.8,3333.3,3.6695]
[1735730413658,1.64617,3333.4,3333.3,3.6695]
[1735730413959,1.64617,3333.4,3333.3,0.4617]
[1735730414160,1.20437,3333.4,3333.3,0.78760528]
[1735730414353,0.30057,3333.4,3333.3,4.29598528]
[1735730414549,0.30057,3333.4,3333.3,0.76228]
[1735730414756,0.30057,3333.4,3333.3,3.97008]
[1735730416755,0.30057,3333.4,3333.3,3.6695]
[1735730417154,0.30057,3333.4,3333.3,3.97008]
[1735730417355,0.30057,3333.4,3333.3,3.6695]
[1735730417554,0.30057,3333.4,3333.3,3.2078]
[1735730418657,0.30057,3333.4,3333.3,3.53344357]
[1735730419661,0.30057,3333.4,3333.3,3.83402357]
[1735730419861,0.30057,3333.4,3333.3,3.53344357]
[1735730421668,0.30057,3333.4,3333.3,3.53335951]
[1735730422065,0.4418,3333.7,3333.1,5.90266005]
[1735730422066,3.6496,3333.7,3333.1,4.72866005]
[1735730422264,0.30059,3333.2,3333.1,4.72866005]
[1735730422762,0.74389,3333.2,3333.1,4.72866005]
[1735730422971,3.95169,3333.2,3333.1,4.72866005]
[1735730423171,3.6511,3333.2,3332.6,45.52866005]
[1735730423370,0.30064,3332.7,3332.6,4.72866005]
[1735730424567,0.30065,3332.6,3332.5,1.47465]
[1735730425072,0.30065,3332.6,3332.5,1.174]
[1735730425663,0.30065,3332.6,3332.5,1.47466]
[1735730430766,0.30065,3332.6,3332.5,1.174]
[1735730431172,0.30065,3332.6,3332.5,1.47466]
[1735730433380,0.30065,3332.6,3332.5,1.174]
[1735730434370,0.30065,3332.6,3332.5,1.47466]
[1735730434570,0.30065,3332.6,3332.5,1.174]
[1735730435176,0.30065,3332.6,3332.5,1.47466]
[1735730439085,0.30065,3332.6,3332.5,1.174]
[1735730439571,0.30065,3332.6,3332.5,1.47466]
[1735730442982,0.30065,3332.6,3332.5,0.30066]
[1735730444275,0.30066,3332.5,3332.4,0.30066]
[1735730444477,0.30066,3332.5,3332.4,0.62614446]
[1735730445079,0.30066,3332.5,3332.4,0.32548446]
[1735730445281,0.30066,3332.4,3332.3,3.2078]
[1735730445475,0.72876,3332.4,3332.3,3.2078]
[1735730446081,0.30069,3332.1,3332.0,0.4554]
[1735730446379,0.30069,3332.1,3332.0,0.7561]
[1735730447282,0.4281,3332.4,3332.0,0.4554]
[1735730447480,0.30069,3332.2,3332.1,0.30068]
[1735730448084,0.4281,3332.4,3332.0,0.4554]
[1735730448284,0.75659,3332.1,3332.0,0.75609]
[1735730449484,0.75659,3332.1,3332.0,1.0818135]
[1735730449878,0.4559,3332.1,3332.0,1.0818135]
[1735730450390,0.4559,3332.1,3332.0,1.45714114]
[1735730450885,0.75659,3332.1,3332.0,1.0818135]
[1735730451481,0.75659,3332.1,3332.0,1.45732625]
[1735730452581,0.75659,3332.1,3332.0,1.45773372]
[1735730452786,0.75659,3332.1,3332.0,5.18721515]
[1735730452994,0.75659,3332.1,3332.0,3.96389]
[1735730453292,0.75659,3332.1,3332.0,4.6655104]
[1735730455590,0.75659,3332.1,3332.0,4.66543474]
[1735730457290,0.30069,3332.1,3332.0,4.66543474]
[1735730458590,0.30069,3332.1,3332.0,1.45763474]
[1735730458790,0.4281,3332.4,3332.0,4.36474474]
[1735730459091,0.30069,3332.2,3332.1,0.6266845]
[1735730460785,0.30069,3332.2,3332.1,1.00220893]
[1735730461287,0.30069,3332.2,3332.1,42.32377764]
[1735730461694,0.30069,3332.2,3332.1,1.52377997]
[1735730461885,0.30069,3332.2,3332.1,1.52380135]
[1735730463091,0.4625,3332.5,3332.1,1.22312135]
[1735730463289,5.89157345,3333.0,3332.4,3.2078]
[1735730463593,6.19219345,3333.0,3332.9,0.30062]
[1735730463793,6.19219345,3333.0,3332.9,3.50842]
[1735730464491,0.30062,3333.0,3332.9,3.50842]
[1735730464684,0.76471,3333.1,3333.0,0.30061]
[1735730465081,0.76471,3333.1,3333.0,0.75301]
[1735730465888,0.76471,3333.1,3333.0,0.4524]
[1735730467795,0.76471,3333.1,3333.0,0.75301]
[1735730468597,0.8984,3333.3,3333.0,0.4524]
[1735730468797,0.4592,3333.3,3333.2,0.30059]
[1735730468995,3.2078,3333.4,3333.1,3.89290254]
[1735730469193,3.2078,3333.4,3333.3,0.30058]
[1735730469590,3.50837,3333.4,3333.3,0.30058]
[1735730471501,0.30059,3333.3,3333.2,0.30059]
[1735730472095,1.18039,3333.3,3333.2,0.30059]
[1735730473495,0.8798,3333.3,3333.1,1.174]
[1735730473697,0.76199,3333.2,3333.1,1.47459]
[1735730474302,0.30061,3333.0,3332.9,3.2078]
[1735730474496,0.30061,3333.0,3332.9,3.53304973]
[1735730474799,0.30061,3333.0,3332.9,3.83366973]
[1735730475898,0.4614,3333.2,3332.9,3.53299894]
[1735730476104,0.3006,3333.1,3333.0,0.3006]
[1735730476601,0.3006,3333.1,3333.0,41.1006]
[1735730477001,0.3006,3333.1,3333.0,0.3006]
[1735730477400,0.762,3333.2,3333.1,0.3006]
[1735730480202,0.762,3333.2,3333.1,1.38340108]
[1735730480393,0.4614,3333.2,3333.1,1.38340108]
[1735730481002,5.89157345,3333.6,3333.1,1.08280108]
[1735730481205,5.89157345,3333.6,3333.5,1.38337108]
[1735730481400,0.30054,3333.8,3333.7,0.30055]
[1735730481807,4.78223,3333.9,3333.8,0.30054]
[1735730483499,0.30054,3333.8,3333.7,1.08280108]
[1735730484105,0.30054,3333.8,3333.7,1.38335108]
[1735730484302,0.30054,3333.8,3333.7,0.30055]
[1735730485708,1.2739,3333.9,3333.6,0.4343]
[1735730485911,1.57443,3333.9,3333.8,0.30054]
[1735730488016,1.2739,3333.9,3333.8,0.30054]
[1735730488220,0.8507,3333.9,3333.8,0.30054]
[1735730488514,1.15123,3333.9,3333.8,0.30054]
[1735730489316,0.8507,3333.9,3333.8,0.30054]
[1735730490019,0.8507,3333.9,3333.8,3.50834]
[1735730490217,0.8507,3333.9,3333.8,3.8336592]
[1735730490518,0.8507,3333.9,3333.8,3.83366074]
[1735730490925,0.8507,3333.9,3333.8,3.50834]
[1735730491322,1.15123,3333.9,3333.8,3.50834]
[1735730492124,1.15123,3333.9,3333.8,3.83367366]
[1735730493228,1.15123,3333.9,3333.8,3.2078]
[1735730493635,0.30055,3333.7,3333.6,0.4343]
[1735730493926,0.30055,3333.7,3333.6,1.06034677]
[1735730494124,0.30055,3333.7,3333.6,0.73486]
[1735730494522,0.30055,3333.7,3333.6,1.06037574]
[1735730497331,0.30055,3333.7,3333.6,1.06043688]
[1735730497826,0.30056,3333.6,3333.5,1.47356]
[1735730498026,0.74606,3333.6,3333.5,1.79917137]
[1735730499734,0.74606,3333.6,3333.5,1.79922401]
[1735730500423,0.4455,3333.6,3333.5,1.79922401]
[1735730500734,0.4455,3333.6,3333.5,2.17440269]
[1735730500934,0.4455,3333.6,3333.5,2.69547959]
[1735730501433,0.4455,3333.6,3333.5,1.79922401]
[1735730502235,0.74606,3333.6,3333.5,1.79922401]
[1735730503246,0.4455,3333.6,3333.5,1.79922401]
[1735730503535,0.4455,3333.6,3333.5,1.79928235]
[1735730503734,0.4455,3333.6,3333.5,1.79929675]
[1735730506336,0.4455,3333.6,3333.5,2.88171395]
[1735730506535,0.4455,3333.6,3333.5,2.8818397]
[1735730507331,0.4455,3333.6,3333.5,2.88183961]
[1735730508331,0.4455,3333.6,3333.5,6.08963961]
[1735730509431,0.30054,3333.8,3333.7,0.30054]
[1735730509656,0.75214,3333.8,3333.7,1.00205443]
[1735730510439,0.75214,3333.8,3333.7,1.5240395]
[1735730512243,0.75214,3333.8,3333.7,1.00205443]
[1735730512441,0.75214,3333.8,3333.7,1.52408081]
[1735730512839,0.75214,3333.8,3333.7,1.52577572]
[1735730516047,0.75214,3333.8,3333.7,1.52576667]
[1735730516343,0.75214,3333.8,3333.7,1.52577435]
[1735730516741,0.4516,3333.8,3333.7,1.00305979]
[1735730518037,0.4516,3333.8,3333.7,1.0030451]
[1735730520447,0.75214,3333.8,3333.7,0.62721885]
[1735730521341,0.75214,3333.8,3333.7,0.62724243]
[1735730522249,0.75214,3333.8,3333.7,3.83504243]
[1735730523449,0.4516,3333.8,3333.7,3.83504243]
[1735730523842,0.75214,3333.8,3333.7,4.35786242]
[1735730524050,0.75214,3333.8,3333.7,9.08652247]
[1735730524847,0.75214,3333.8,3333.7,9.46247604]
[1735730525353,1.15123,3333.9,3333.8,0.30054]
[1735730525648,0.8507,3333.9,3333.8,2.60842062]
[1735730525849,1.15123,3333.9,3333.8,3.06392062]
[1735730526460,1.15123,3333.9,3333.8,1.8384572]
[1735730526646,1.15123,3333.9,3333.8,13.82477069]
[1735730527351,1.15123,3333.9,3333.8,13.82475337]
[1735730527650,4.35903,3333.9,3333.8,10.76087534]
[1735730527846,1.15123,3333.9,3333.8,10.76087534]
[1735730528847,0.30054,3333.8,3333.7,4.72866005]
[1735730529057,0.30054,3333.8,3333.7,5.42539295]
[1735730529350,0.30054,3333.8,3333.7,5.72594295]
[1735730530050,0.30054,3333.8,3333.7,5.42539295]
[1735730530851,0.30054,3333.8,3333.7,11.4588757]
[1735730531343,0.30054,3333.8,3333.7,11.08297852]
[1735730531547,0.30054,3333.8,3333.7,10.7621428]
[1735730532046,5.89157345,3333.8,3333.5,4.72866005]
[1735730532250,0.30056,3333.6,3333.5,4.72866005]
[1735730533348,5.89157345,3333.6,3333.2,4.72866005]
[1735730533539,0.30058,3333.3,3333.2,4.72866005]
[1735730534351,0.30058,3333.3,3333.1,4.6814]
[1735730534352,0.30059,3333.2,3333.1,4.6814]
[1735730534552,1.64749,3333.2,3333.1,4.6814]
[1735730537257,1.20179,3333.2,3333.1,4.6814]
[1735730537641,1.20179,3333.2,3333.1,1.4736]
[1735730537852,1.20179,3333.2,3333.1,4.6814]
[1735730538951,1.20179,3333.2,3333.1,5.00166814]
[1735730539354,0.30059,3333.2,3333.1,5.00166814]
[1735730539561,0.30059,3333.3,3333.2,0.30058]
[1735730539949,0.30059,3333.3,3333.2,1.3829972]
[1735730544952,0.30059,3333.3,3333.2,1.70319487]
[1735730546062,0.30059,3333.3,3333.2,1.70320092]
[1735730546759,0.30059,3333.3,3333.2,1.3829972]
[1735730547151,0.30059,3333.3,3333.2,1.70321819]
[1735730547554,0.30055,3333.7,3333.6,0.30054]
[1735730547753,0.30055,3333.7,3333.6,1.3829572]
[1735730547951,9.09937345,3333.9,3333.6,1.0824172]
[1735730548170,9.09937345,3333.9,3333.8,1.3829572]
[1735730548356,6.19210345,3333.9,3333.8,1.3829572]
[1735730548556,1.17673,3334.0,3333.9,0.30053]
[1735730553456,1.17673,3334.0,3333.9,0.72813]
[1735730553760,0.8762,3334.0,3333.9,0.72813]
[1735730553966,5.89157345,3334.2,3334.1,0.30051]
[1735730555265,6.19207345,3334.2,3334.1,0.30051]
[1735730555768,0.3005,3334.2,3334.1,0.30051]
[1735730559863,0.3005,3334.2,3334.1,41.10051]
[1735730560275,0.3005,3334.2,3334.1,40.8]
[1735730560466,0.30051,3334.1,3334.0,1.3829372]
[1735730560671,0.30052,3334.0,3333.9,1.6006]
[1735730560868,1.18702,3334.0,3333.9,1.90113]
[1735730563369,0.8865,3334.0,3333.9,1.90113]
[1735730563575,1.18702,3334.0,3333.9,1.90113]
[1735730566276,0.75542,3334.1,3334.0,0.30052]
[1735730566572,0.75542,3334.1,3334.0,1.3829372]
[1735730569873,0.75542,3334.1,3334.0,1.0824172]
[1735730570477,0.4549,3334.1,3333.9,1.47353]
[1735730570672,0.30052,3334.0,3333.9,1.47353]
[1735730570977,0.30052,3334.0,3333.9,1.173]
[1735730571370,0.30052,3334.0,3333.9,1.47353]
[1735730576180,0.30052,3334.0,3333.9,1.7939522]
[1735730576885,0.30052,3334.0,3333.9,1.79404918]
[1735730577880,0.30052,3334.0,3333.9,1.49351918]
[1735730578882,0.30052,3334.0,3333.9,0.32051918]
[1735730579079,0.30052,3334.0,3333.9,0.32071077]
[1735730579379,0.30052,3334.0,3333.9,1.40312797]
[1735730579680,0.30052,3334.0,3333.9,1.70365797]
[1735730579982,0.30052,3334.0,3333.9,1.70366103]
[1735730580373,0.30052,3334.0,3333.9,1.3829472]
[1735730580578,0.30052,3334.0,3333.9,1.70367867]
[1735730582087,0.30052,3334.0,3333.9,1.70369565]
[1735730583383,0.75542,3334.1,3334.0,0.30052]
[1735730583585,0.4549,3334.1,3334.0,0.62126845]
[1735730583884,1.19279,3334.4,3334.3,0.30049]
[1735730584089,1.61999,3334.4,3334.3,0.30049]
[1735730585279,1.61999,3334.4,3334.3,0.6360726]
[1735730587387,7.51156345,3334.4,3334.3,0.6360726]
[1735730588186,7.51156345,3334.4,3334.3,0.63601904]
[1735730588484,7.21107345,3334.4,3334.3,1.80901904]
[1735730588675,7.51155345,3334.4,3334.3,1.80901904]
[1735730589883,7.51155345,3334.4,3334.3,1.50852904]
[1735730591097,7.51155345,3334.4,3334.3,0.33552904]
[1735730591290,7.21107345,3334.4,3334.1,0.428]
[1735730591585,0.3005,3334.2,3334.1,0.72851]
[1735730591788,0.3005,3334.2,3334.1,1.06399548]
[1735730593188,6.20746709,3334.2,3334.1,1.06399548]
[1735730593382,6.20746709,3334.2,3334.1,1.06398915]
[1735730594087,0.3005,3334.2,3334.1,5.7926492]
[1735730594288,0.3005,3334.2,3334.1,5.79264678]
[1735730596686,0.3005,3334.2,3334.1,5.06413678]
[1735730596992,0.3005,3334.2,3334.1,4.72866005]
[1735730597989,0.30051,3334.1,3334.0,7.28459725]
[1735730598189,0.30051,3334.1,3334.0,7.62006493]
[1735730599192,0.30051,3334.1,3334.0,13.65215507]
[1735730599394,0.30051,3334.1,3334.0,14.1889188]
[1735730599690,0.30051,3334.1,3334.0,13.8883988]
[1735730599893,0.30051,3334.1,3334.0,12.8059816]
[1735730600093,0.30051,3334.1,3334.0,8.07732155]
[1735730600287,0.30051,3334.1,3334.0,8.07733177]
[1735730601201,0.30051,3334.1,3334.0,6.90433177]
[1735730601392,0.30051,3334.1,3334.0,0.87224163]
[1735730602598,0.30051,3334.1,3334.0,2.25520236]
[1735730602899,0.30051,3334.1,3334.0,6.98715938]
[1735730604000,0.30051,3334.1,3334.0,8.28778882]
[1735730605297,0.30051,3334.1,3334.0,8.65887635]
[1735730606297,0.30051,3334.1,3334.0,8.28778882]
[1735730606594,0.30051,3334.1,3334.0,8.28785061]
[1735730606796,0.30051,3334.1,3334.0,15.38973556]
[1735730608899,0.30051,3334.1,3334.0,2.25526415]
[1735730610196,0.30051,3334.1,3334.0,2.25535695]
[1735730610794,5.90696709,3334.3,3334.0,1.95483695]
[1735730611098,5.90696709,3334.3,3334.2,0.3005]
[1735730611300,5.90696709,3334.3,3334.2,0.63604036]
[1735730611794,6.20745709,3334.3,3334.2,0.63606431]
[1735730612596,6.20745709,3334.3,3334.2,0.3005]
[1735730612902,5.90696709,3334.3,3334.2,1.71850474]
[1735730613991,6.20745709,3334.3,3334.2,1.71850474]
[1735730614406,5.90696709,3334.3,3334.2,1.71850474]
[1735730614602,5.90696709,3334.3,3334.2,2.25288908]
[1735730614803,6.20745709,3334.3,3334.2,2.25288908]
[1735730615700,6.20745709,3334.3,3334.2,2.2512715]
[1735730616206,0.30049,3334.3,3334.2,6.98320571]
[1735730618898,0.4446,3334.4,3334.3,0.30049]
[1735730619201,9.41523709,3334.6,3334.5,0.30048]
[1735730619595,3.50827,3334.6,3334.5,0.30048]
[1735730620099,3.50827,3334.6,3334.5,0.33392826]
[1735730620692,3.50827,3334.6,3334.5,0.63440826]
[1735730621303,3.50827,3334.6,3334.5,0.6343576]
[1735730621802,3.50827,3334.6,3334.5,0.63435414]
[1735730621998,3.50827,3334.6,3334.5,0.30048]
[1735730622800,3.2078,3334.6,3334.5,0.30048]
[1735730623001,5.90696709,3334.7,3334.6,0.30047]
[1735730623201,5.90696709,3334.7,3334.6,1.3828872]
[1735730623394,5.90696709,3334.7,3334.6,1.71658572]
[1735730623599,5.90696709,3334.7,3334.6,2.25042695]
[1735730623799,5.90696709,3334.9,3334.8,0.30045]
[1735730623998,5.90696709,3334.9,3334.8,1.71656572]
[1735730624201,5.90696709,3334.9,3334.8,1.7163646]
[1735730625003,5.90696709,3334.9,3334.8,1.71636347]
[1735730625203,6.20739709,3335.0,3334.8,1.0824172]
[1735730625409,5.90696709,3335.0,3334.8,1.0824172]
[1735730625609,0.30044,3334.9,3334.8,1.3828572]
[1735730629211,0.30044,3334.9,3334.8,1.71601565]
[1735730634111,0.30044,3334.9,3334.8,1.3828572]
[1735730634420,0.30044,3334.9,3334.8,1.71586898]
[1735730634911,0.30044,3334.9,3334.8,1.3828572]
[1735730635415,0.30044,3334.9,3334.8,1.71588103]
[1735730635914,5.90696709,3335.5,3334.9,0.75111]
[1735730636211,4.48917406,3335.5,3335.4,1.3828072]
[1735730636419,4.48917406,3335.5,3335.4,44.22008229]
[1735730636812,4.48917406,3335.5,3335.4,42.60541383]
[1735730637016,4.78956406,3335.5,3335.4,43.68783103]
[1735730637211,4.78956406,3335.5,3335.4,43.3548072]
[1735730637418,4.78956406,3335.5,3335.4,43.0544172]
[1735730637419,0.30039,3335.5,3335.4,43.0544172]
[1735730637715,0.30039,3335.5,3335.4,43.3548072]
[1735730637924,0.30039,3335.5,3335.4,2.5548072]
[1735730638316,0.30039,3335.5,3335.4,1.172]
[1735730638922,3.2078,3335.8,3335.2,3.2078]
[1735730639115,0.9174,3335.4,3335.0,1.47243]
[1735730639316,0.30042,3335.1,3335.0,1.47243]
[1735730639517,0.30042,3335.1,3335.0,1.80510541]
[1735730639913,0.30042,3335.1,3335.0,1.80510198]
[1735730640324,0.30042,3335.1,3335.0,1.50468532]
[1735730640623,0.30042,3335.1,3335.0,1.172]
[1735730641328,0.30043,3335.0,3334.9,0.30044]
[1735730641518,0.74583,3335.0,3334.9,0.6331949]
[1735730641714,0.74583,3335.0,3334.8,4.3798]
[1735730641715,0.30044,3334.9,3334.8,4.68024]
[1735730642020,0.72124,3334.9,3334.8,5.01301634]
[1735730642218,0.72124,3334.9,3334.8,5.0130588]
[1735730642924,0.4208,3334.9,3334.8,5.0130588]
[1735730643826,0.4208,3334.9,3334.8,1.8052588]
[1735730644022,0.30041,3335.3,3335.2,0.3004]
[1735730646820,0.8998,3335.4,3335.3,0.3004]
[1735730648121,0.8998,3335.4,3335.3,0.63331118]
[1735730648627,0.8998,3335.4,3335.3,0.3004]
[1735730649121,0.8998,3335.4,3335.3,0.63333381]
[1735730649422,0.8998,3335.4,3335.3,0.63328244]
[1735730649719,0.449,3335.4,3335.3,0.63328244]
[1735730650314,0.4557,3335.6,3335.5,0.30039]
[1735730650518,0.4557,3335.6,3335.5,5.79253973]
[1735730651129,0.30034,3336.0,3335.9,0.30035]
[1735730651323,0.75604,3336.0,3335.9,0.30035]
[1735730651524,0.4557,3336.0,3335.9,0.30035]
[1735730652827,0.9012,3336.1,3336.0,0.30034]
[1735730653024,0.9012,3336.1,3336.0,0.63314777]
[1735730654229,1.20153,3336.1,3336.0,0.30034]
[1735730654429,0.9012,3336.1,3336.0,0.30034]
[1735730654829,1.3314,3336.1,3336.0,0.30034]
[1735730656127,1.3314,3336.1,3336.0,0.63167237]
[1735730656323,1.3314,3336.1,3336.0,0.30034]
[1735730659740,0.8844,3336.1,3336.0,0.30034]
[1735730660429,0.30032,3336.3,3335.8,2.74084973]
[1735730660636,0.30032,3336.3,3336.2,0.30032]
[1735730661136,1.17221,3336.4,3336.3,0.30031]
[1735730662436,0.8719,3336.4,3336.3,0.30031]
[1735730663032,0.4377,3336.4,3336.3,0.30031]
[1735730664437,0.738,3336.4,3336.3,0.30031]
[1735730664637,1.1794,3336.4,3336.3,0.30031]
[1735730667373,0.8791,3336.4,3336.3,0.30031]
[1735730670155,1.1794,3336.4,3336.3,0.30031]
[1735730670657,0.8791,3336.4,3336.3,0.30031]
[1735730671661,1.1794,3336.4,3336.3,0.30031]
[1735730671865,0.8791,3336.4,3336.3,0.30031]
[1735730672956,0.4224,3336.5,3336.4,0.3003]
[1735730673152,3.2078,3336.9,3336.1,3.2078]
[1735730673153,0.91,3336.8,3336.1,3.2078]
[1735730673355,0.4247,3336.4,3336.1,3.2078]
[1735730673554,0.91,3336.3,3336.2,0.30032]
[1735730674046,1.21031,3336.3,3336.2,0.30032]
[1735730674246,1.21031,3336.3,3336.2,0.63077165]
[1735730675080,1.21031,3336.3,3336.2,0.30032]
[1735730675274,1.21031,3336.3,3336.2,0.63076426]
[1735730676077,1.21031,3336.3,3336.2,0.63085468]
[1735730677564,0.30031,3336.4,3336.3,0.30031]
[1735730677841,0.3003,3336.4,3336.3,0.33053468]
[1735730678344,0.30032,3336.2,3336.1,3.50813]
[1735730678650,0.30032,3336.2,3336.1,3.8389708]
[1735730679144,0.30032,3336.2,3336.1,3.8389719]
[1735730679145,0.8973,3336.2,3336.1,3.8389719]
[1735730679852,3.2078,3336.8,3336.1,3.5386419]
[1735730680047,0.30031,3336.3,3336.2,0.6311519]
[1735730681445,0.76401,3336.3,3336.2,0.6311519]
[1735730682551,0.76401,3336.3,3336.2,0.6314981]
[1735730682955,0.4637,3336.3,3336.2,0.6314981]
[1735730684056,0.76401,3336.3,3336.2,0.6314981]
[1735730684655,0.4637,3336.3,3336.2,0.6314981]
[1735730685256,0.76401,3336.3,3336.2,0.63160061]
[1735730687357,0.30031,3336.3,3336.2,0.63160061]
[1735730687558,0.75231,3336.3,3336.2,0.63160061]
[1735730688152,0.75231,3336.3,3336.2,0.63168744]
[1735730688347,0.75231,3336.3,3336.2,0.33140107]
[1735730691363,0.75231,3336.3,3336.2,0.33153552]
[1735730691758,0.75231,3336.3,3336.2,0.33150664]
[1735730692462,3.96011,3336.3,3336.2,0.33150664]
[1735730692667,0.30038,3335.6,3335.5,4.73193421]
[1735730692866,0.30038,3335.6,3335.5,5.06357174]
[1735730693169,0.30038,3335.6,3335.5,4.73193421]
[1735730693361,0.30039,3335.4,3335.3,4.73193421]
[1735730694771,5.90321634,3335.5,3335.2,3.2078]
[1735730695069,0.7549,3335.3,3335.2,3.50821]
[1735730695371,0.7549,3335.3,3335.2,3.2078]
[1735730695765,0.30042,3335.1,3335.0,0.30043]
[1735730695965,0.30042,3335.1,3335.0,0.63000425]
[1735730696268,1.18622,3335.2,3335.1,0.30042]
[1735730697060,0.8858,3335.2,3335.1,0.30042]
[1735730697266,1.18621,3335.2,3335.1,0.30042]
[1735730697566,0.8858,3335.2,3335.1,0.30042]
[1735730697967,1.18621,3335.2,3335.1,0.30042]
[1735730698969,0.8858,3335.2,3334.8,5.49214973]
[1735730699165,0.30043,3335.1,3335.0,0.30043]
[1735730699374,0.8858,3335.2,3334.8,5.49214973]
[1735730699571,0.30043,3335.0,3334.9,1.93253]
[1735730700274,0.8858,3335.2,3334.9,1.6321]
[1735730700469,0.30043,3335.1,3335.0,0.30042]
[1735730702971,0.8858,3335.2,3334.8,3.2078]
[1735730703165,0.30044,3334.9,3334.8,3.2078]
[1735730703367,0.30044,3334.9,3334.6,4.73193421]
[1735730703368,0.30046,3334.7,3334.6,5.03239421]
[1735730704171,0.30046,3334.7,3334.6,0.30046]
[1735730704172,1.19286,3334.7,3334.6,0.30046]
[1735730704967,1.19286,3334.7,3334.5,0.445]
[1735730704968,0.30047,3334.6,3334.5,0.445]
[1735730705173,0.30047,3334.6,3334.5,0.74547]
[1735730705373,0.8924,3334.7,3334.5,0.445]
[1735730705575,1.19286,3334.7,3334.6,0.30047]
[1735730705967,0.30047,3334.6,3334.5,0.74547]
[1735730709273,0.4548,3334.7,3334.6,0.30047]
[1735730709581,0.8964,3335.0,3334.9,0.30044]
[1735730709769,0.4572,3335.0,3334.9,0.30044]
[1735730710166,0.75763,3335.0,3334.9,41.10044]
[1735730710576,0.4572,3335.0,3334.9,41.10044]
[1735730711475,0.4572,3335.0,3334.9,40.8]
[1735730711476,0.75763,3335.0,3334.9,40.8]
[1735730712181,0.75763,3335.0,3334.4,4.67928]
[1735730712182,0.30048,3334.5,3334.4,4.67928]
[1735730712676,0.30048,3334.5,3334.4,3.2078]
[1735730714084,0.30048,3334.5,3334.4,3.50828]
[1735730715778,0.30048,3334.5,3334.4,0.30048]
[1735730720684,0.3005,3334.4,3334.3,0.30049]
[1735730720881,0.7575,3334.4,3334.3,0.30049]
[1735730721480,0.7575,3334.4,3334.3,0.62956371]
[1735730722490,0.457,3334.4,3334.3,0.62956371]
[1735730723194,0.30048,3334.5,3334.4,0.30048]
[1735730723391,0.30048,3334.5,3334.4,0.62955371]
[1735730730701,0.30048,3334.5,3334.4,0.63007354]
[1735730733294,0.30048,3334.5,3334.4,1.15775718]
[1735730733495,0.76678,3334.6,3334.5,0.30048]
[1735730733794,0.76678,3334.6,3334.5,0.63007354]
[1735730735096,0.76678,3334.6,3334.5,0.32959354]
[1735730735496,0.76678,3334.6,3334.5,0.63007354]
[1735730735794,0.76678,3334.6,3334.5,0.32959354]
[1735730736299,0.76677,3334.6,3334.5,0.32980813]
[1735730736691,0.76677,3334.6,3334.5,0.63028813]
[1735730739298,0.76677,3334.6,3334.5,0.30048]
[1735730739494,0.76677,3334.6,3334.5,0.63031507]
[1735730739998,0.76677,3334.6,3334.5,0.63031562]